[Event "Early-Titled-Tuesday-Blitz-October-10-2023"]
[Site "Chess.com"]
[Date "2023.10.10"]
[Round "9"]
[White "Ural_bogatyr"]
[Black "karinachess1"]
[Result "1/2-1/2"]
[WhiteElo "2537"]
[BlackElo "2620"]
[TimeControl "180+1"]
[EndTime "9:44:34 PDT"]
[Termination "Game drawn by repetition"]

1. d4 {[%clk 0:02:56.7]} 1... Nf6 {[%clk 0:02:59.6]} 2. Nc3 {[%clk 0:02:56.2]}
2... d5 {[%clk 0:02:59.2]} 3. Bf4 {[%clk 0:02:55.6]} 3... g6 {[%clk 0:02:59.4]}
4. e3 {[%clk 0:02:53.6]} 4... Bg7 {[%clk 0:02:59.7]} 5. Nb5 {[%clk 0:02:54.1]}
5... Na6 {[%clk 0:02:59.5]} 6. Nc3 {[%clk 0:02:54.3]} 6... Nb8 {[%clk
0:02:55.2]} 7. Nb5 {[%clk 0:02:54.3]} 7... Na6 {[%clk 0:02:55.6]} 8. Nc3 {[%clk
0:02:54.5]} 8... O-O {[%clk 0:02:49.1]} 9. Bxa6 {[%clk 0:02:54]} 9... bxa6
{[%clk 0:02:50]} 10. Be5 {[%clk 0:02:54.8]} 10... c6 {[%clk 0:02:26.1]} 11. Nge2
{[%clk 0:02:50.6]} 11... Be6 {[%clk 0:02:05.4]} 12. O-O {[%clk 0:02:47.6]} 12...
Ne8 {[%clk 0:01:48.9]} 13. Bxg7 {[%clk 0:02:46.4]} 13... Nxg7 {[%clk 0:01:49.8]}
14. Na4 {[%clk 0:02:43.6]} 14... Qd6 {[%clk 0:01:48.3]} 15. Nc5 {[%clk 0:02:42]}
15... a5 {[%clk 0:01:47.7]} 16. Qd2 {[%clk 0:02:40]} 16... Qc7 {[%clk 0:01:45]}
17. Nf4 {[%clk 0:02:33.1]} 17... Bf5 {[%clk 0:01:41.8]} 18. Nfd3 {[%clk
0:02:19.8]} 18... Bxd3 {[%clk 0:01:39]} 19. cxd3 {[%clk 0:02:15.6]} 19... Nf5
{[%clk 0:01:31.4]} 20. Rfc1 {[%clk 0:02:13.3]} 20... Rfc8 {[%clk 0:01:20.4]} 21.
Rc2 {[%clk 0:02:11.5]} 21... e5 {[%clk 0:01:12.6]} 22. dxe5 {[%clk 0:02:08.7]}
22... Qxe5 {[%clk 0:01:13.5]} 23. d4 {[%clk 0:02:09.1]} 23... Qf6 {[%clk
0:01:01.4]} 24. Rac1 {[%clk 0:01:23.6]} 24... Qg5 {[%clk 0:00:59.3]} 25. Kh1
{[%clk 0:01:13.2]} 25... Re8 {[%clk 0:00:47.9]} 26. Nd3 {[%clk 0:01:10.7]} 26...
Kg7 {[%clk 0:00:28.5]} 27. Rxc6 {[%clk 0:01:01]} 27... Rab8 {[%clk 0:00:19.7]}
28. Ne5 {[%clk 0:00:54.7]} 28... Re7 {[%clk 0:00:12.7]} 29. b3 {[%clk 0:00:48]}
29... Rbe8 {[%clk 0:00:12.5]} 30. Rc7 {[%clk 0:00:39.7]} 30... Nxd4 {[%clk
0:00:07.3]} 31. Nxf7 {[%clk 0:00:30]} 31... Nxb3 {[%clk 0:00:03.4]} 32. axb3
{[%clk 0:00:12.6]} 32... Kxf7 {[%clk 0:00:03.1]} 33. Qxa5 {[%clk 0:00:09.2]}
33... Qe5 {[%clk 0:00:01.7]} 34. Qxa7 {[%clk 0:00:08.7]} 34... h5 {[%clk
0:00:01]} 35. Rxe7+ {[%clk 0:00:08.3]} 35... Rxe7 {[%clk 0:00:01.9]} 36. Qd4
{[%clk 0:00:07.7]} 36... Qxd4 {[%clk 0:00:02.3]} 37. exd4 {[%clk 0:00:08.6]}
37... Re2 {[%clk 0:00:02.3]} 38. Kg1 {[%clk 0:00:08.7]} 38... Rb2 {[%clk
0:00:02.6]} 39. g3 {[%clk 0:00:07.6]} 39... Rxb3 {[%clk 0:00:03.1]} 40. Rc5
{[%clk 0:00:05.6]} 40... Ke6 {[%clk 0:00:03.6]} 41. Rc6+ {[%clk 0:00:05.6]}
41... Kf5 {[%clk 0:00:04.2]} 42. Kg2 {[%clk 0:00:06]} 42... Rd3 {[%clk 0:00:04]}
43. h3 {[%clk 0:00:04.8]} 43... Rxd4 {[%clk 0:00:04.5]} 44. Kf3 {[%clk
0:00:04.5]} 44... Rd3+ {[%clk 0:00:04.8]} 45. Ke2 {[%clk 0:00:04.8]} 45... Ra3
{[%clk 0:00:04.7]} 46. Rd6 {[%clk 0:00:04]} 46... Ra2+ {[%clk 0:00:05.2]} 47.
Kf3 {[%clk 0:00:04]} 47... Ra3+ {[%clk 0:00:05.5]} 48. Ke2 {[%clk 0:00:04.2]}
48... Ra2+ {[%clk 0:00:05.4]} 49. Kf3 {[%clk 0:00:04.6]} 49... Ra3+ {[%clk
0:00:05.7]} 50. Ke2 {[%clk 0:00:04.9]} 1/2-1/2

[Event "Early-Titled-Tuesday-Blitz-October-10-2023"]
[Site "Chess.com"]
[Date "2023.10.10"]
[Round "9"]
[White "PatzerSmashers"]
[Black "Witty_Alien"]
[Result "1-0"]
[WhiteElo "2422"]
[BlackElo "2239"]
[TimeControl "180+1"]
[EndTime "9:44:37 PDT"]
[Termination "PatzerSmashers won by resignation"]

1. d4 {[%clk 0:02:57.7]} 1... e5 {[%clk 0:02:59.9]} 2. dxe5 {[%clk 0:02:57.1]}
2... d6 {[%clk 0:03:00.3]} 3. Bf4 {[%clk 0:02:48.4]} 3... Nc6 {[%clk 0:03:00.3]}
4. exd6 {[%clk 0:02:47.3]} 4... Qf6 {[%clk 0:02:55]} 5. Qc1 {[%clk 0:02:38.7]}
5... Bxd6 {[%clk 0:02:46.5]} 6. Bxd6 {[%clk 0:02:37.2]} 6... Qxd6 {[%clk
0:02:47.4]} 7. Nf3 {[%clk 0:02:33.5]} 7... Bg4 {[%clk 0:02:46.8]} 8. Nbd2 {[%clk
0:02:26.1]} 8... O-O-O {[%clk 0:02:46.3]} 9. h3 {[%clk 0:02:26.6]} 9... Bh5
{[%clk 0:02:26.3]} 10. e3 {[%clk 0:02:20.5]} 10... Nf6 {[%clk 0:02:14.3]} 11.
Be2 {[%clk 0:02:17.4]} 11... Kb8 {[%clk 0:02:14.6]} 12. O-O {[%clk 0:02:16.7]}
12... g5 {[%clk 0:02:15.1]} 13. Rd1 {[%clk 0:02:11.6]} 13... g4 {[%clk
0:02:09.2]} 14. Ne4 {[%clk 0:01:47.6]} 14... Qe7 {[%clk 0:01:29.8]} 15. Nxf6
{[%clk 0:01:39.2]} 15... gxf3 {[%clk 0:01:06.6]} 16. Nxh5 {[%clk 0:01:35.2]}
16... fxe2 {[%clk 0:01:05.5]} 17. Rxd8+ {[%clk 0:01:33.6]} 17... Rxd8 {[%clk
0:01:03.1]} 18. Qe1 {[%clk 0:01:33.6]} 18... Qe5 {[%clk 0:00:42.4]} 19. Qxe2
{[%clk 0:01:31.1]} 19... Qxb2 {[%clk 0:00:31.7]} 20. Rd1 {[%clk 0:01:30.7]}
20... Rg8 {[%clk 0:00:29.6]} 21. Nf4 {[%clk 0:01:22.3]} 21... Qxa2 {[%clk
0:00:27.4]} 22. Rd7 {[%clk 0:01:18.8]} 22... Ne5 {[%clk 0:00:24.9]} 23. Rd4
{[%clk 0:01:17.5]} 23... a5 {[%clk 0:00:23]} 24. Kh2 {[%clk 0:01:14.4]} 24... a4
{[%clk 0:00:19.1]} 25. Nd5 {[%clk 0:01:12.5]} 25... Rd8 {[%clk 0:00:09.9]} 26.
Nc3 {[%clk 0:00:48.5]} 26... Rxd4 {[%clk 0:00:02.5]} 27. Nxa2 {[%clk 0:00:41.4]}
27... Rc4 {[%clk 0:00:02.4]} 28. c3 {[%clk 0:00:40.4]} 28... Rc5 {[%clk
0:00:02.2]} 29. f4 {[%clk 0:00:40.2]} 29... Nc4 {[%clk 0:00:02.4]} 30. e4 {[%clk
0:00:35.3]} 30... b5 {[%clk 0:00:02.1]} 31. e5 {[%clk 0:00:35]} 31... Kb7 {[%clk
0:00:02.2]} 32. Nb4 {[%clk 0:00:34.3]} 32... a3 {[%clk 0:00:02.3]} 33. Qe4+
{[%clk 0:00:31.5]} 33... c6 {[%clk 0:00:02.8]} 34. h4 {[%clk 0:00:30.5]} 34...
Kb6 {[%clk 0:00:03.3]} 35. Qxh7 {[%clk 0:00:30]} 35... Nd2 {[%clk 0:00:01.8]}
36. Qxf7 {[%clk 0:00:29]} 36... Rxc3 {[%clk 0:00:02.4]} 37. h5 {[%clk 0:00:24]}
37... Nf1+ {[%clk 0:00:02.8]} 38. Kg1 {[%clk 0:00:23.2]} 38... Ng3 {[%clk
0:00:03]} 39. h6 {[%clk 0:00:20.3]} 39... Ne2+ {[%clk 0:00:01.6]} 40. Kf2 {[%clk
0:00:19.7]} 40... Nd4 {[%clk 0:00:02.2]} 41. h7 {[%clk 0:00:18.9]} 41... Rc4
{[%clk 0:00:02.8]} 42. Qxc4 {[%clk 0:00:18.3]} 42... bxc4 {[%clk 0:00:03]} 43.
h8=Q {[%clk 0:00:18.8]} 43... Nb3 {[%clk 0:00:02.3]} 44. e6 {[%clk 0:00:18.6]}
44... Kb5 {[%clk 0:00:02.3]} 45. e7 {[%clk 0:00:18.6]} 45... Kxb4 {[%clk
0:00:02.4]} 46. e8=Q {[%clk 0:00:19.1]} 46... a2 {[%clk 0:00:03.3]} 47. Qb8+
{[%clk 0:00:19.1]} 47... Ka3 {[%clk 0:00:02.7]} 48. Qa7+ {[%clk 0:00:18.8]}
48... Kb4 {[%clk 0:00:02.5]} 49. Qb6+ {[%clk 0:00:19.1]} 49... Ka4 {[%clk
0:00:02.6]} 50. Qxc6+ {[%clk 0:00:19.3]} 50... Ka3 {[%clk 0:00:03.2]} 51. Qxc4
{[%clk 0:00:18.3]} 51... a1=Q {[%clk 0:00:02.6]} 52. Qxb3+ {[%clk 0:00:18.2]}
52... Kxb3 {[%clk 0:00:02.2]} 53. Qxa1 {[%clk 0:00:18.1]} 53... Kc2 {[%clk
0:00:03.1]} 54. Qd4 {[%clk 0:00:17.8]} 1-0

[Event "Early-Titled-Tuesday-Blitz-October-10-2023"]
[Site "Chess.com"]
[Date "2023.10.10"]
[Round "9"]
[White "AleksandrAleksikov"]
[Black "Treasurechess777"]
[Result "1-0"]
[WhiteElo "2244"]
[BlackElo "2384"]
[TimeControl "180+1"]
[EndTime "9:44:40 PDT"]
[Termination "AleksandrAleksikov won on time"]

1. e4 {[%clk 0:03:00.9]} 1... Nf6 {[%clk 0:02:51.6]} 2. e5 {[%clk 0:02:59]} 2...
Nd5 {[%clk 0:02:51.6]} 3. d4 {[%clk 0:02:59.1]} 3... Nb6 {[%clk 0:02:51.8]} 4.
Nf3 {[%clk 0:02:58.9]} 4... d5 {[%clk 0:02:51.6]} 5. h3 {[%clk 0:02:55.7]} 5...
Bf5 {[%clk 0:02:47.2]} 6. Nh4 {[%clk 0:02:54.4]} 6... Be4 {[%clk 0:02:25.5]} 7.
Nc3 {[%clk 0:02:51.6]} 7... e6 {[%clk 0:02:24.6]} 8. Nxe4 {[%clk 0:02:49.4]}
8... dxe4 {[%clk 0:02:25.5]} 9. g3 {[%clk 0:02:48.7]} 9... c5 {[%clk 0:02:16.9]}
10. Bg2 {[%clk 0:02:42.5]} 10... Nc6 {[%clk 0:01:31.5]} 11. Bxe4 {[%clk
0:02:40]} 11... cxd4 {[%clk 0:01:19.5]} 12. f4 {[%clk 0:02:32.2]} 12... Bb4+
{[%clk 0:01:12.8]} 13. Kf2 {[%clk 0:02:30.7]} 13... Bc5 {[%clk 0:01:04.7]} 14.
Kg2 {[%clk 0:02:28.7]} 14... Qd7 {[%clk 0:00:50.3]} 15. a3 {[%clk 0:02:16.5]}
15... a5 {[%clk 0:00:49.8]} 16. Nf3 {[%clk 0:02:14.9]} 16... f6 {[%clk
0:00:47.6]} 17. exf6 {[%clk 0:02:07.5]} 17... gxf6 {[%clk 0:00:48.5]} 18. Ne1
{[%clk 0:01:57.8]} 18... O-O-O {[%clk 0:00:48]} 19. Nd3 {[%clk 0:01:56.4]} 19...
Be7 {[%clk 0:00:43.6]} 20. b4 {[%clk 0:01:47.2]} 20... Nd5 {[%clk 0:00:32.7]}
21. Bd2 {[%clk 0:01:09.7]} 21... h5 {[%clk 0:00:29.4]} 22. b5 {[%clk 0:01:06.4]}
22... Nb8 {[%clk 0:00:26.3]} 23. Qe1 {[%clk 0:01:01.6]} 23... Rdg8 {[%clk
0:00:25.2]} 24. Kh2 {[%clk 0:00:58.6]} 24... f5 {[%clk 0:00:23.7]} 25. Bxd5
{[%clk 0:00:56.8]} 25... Qxd5 {[%clk 0:00:24.6]} 26. Qe5 {[%clk 0:00:55.2]}
26... Qd7 {[%clk 0:00:24]} 27. Rhe1 {[%clk 0:00:52.6]} 27... Rh6 {[%clk
0:00:24]} 28. Nc5 {[%clk 0:00:50.2]} 28... Bxc5 {[%clk 0:00:20.8]} 29. Qxc5+
{[%clk 0:00:49.9]} 29... Kd8 {[%clk 0:00:20]} 30. Bxa5+ {[%clk 0:00:47.9]} 30...
Ke8 {[%clk 0:00:19]} 31. Qxf5 {[%clk 0:00:46.6]} 31... Rhg6 {[%clk 0:00:15.3]}
32. Qxh5 {[%clk 0:00:44.3]} 32... Kf7 {[%clk 0:00:10.3]} 33. Rg1 {[%clk
0:00:38.8]} 33... Qd6 {[%clk 0:00:05.3]} 34. Bb4 {[%clk 0:00:36.8]} 34... Qb6
{[%clk 0:00:05.3]} 35. Raf1 {[%clk 0:00:35.6]} 35... Nd7 {[%clk 0:00:06]} 36. f5
{[%clk 0:00:34.6]} 36... exf5 {[%clk 0:00:06.7]} 37. Rxf5+ {[%clk 0:00:34]}
37... Ke8 {[%clk 0:00:07.6]} 38. Re1+ {[%clk 0:00:33]} 38... Kd8 {[%clk
0:00:08.2]} 39. Qh4+ {[%clk 0:00:31.9]} 39... Kc8 {[%clk 0:00:08.6]} 40. Rf3
{[%clk 0:00:28]} 40... Qc7 {[%clk 0:00:08.4]} 41. Qf4 {[%clk 0:00:26.9]} 41...
Qxc2+ {[%clk 0:00:08.2]} 42. Rf2 {[%clk 0:00:25.9]} 42... Qc7 {[%clk 0:00:06.5]}
43. Qxc7+ {[%clk 0:00:24.7]} 43... Kxc7 {[%clk 0:00:07.4]} 44. g4 {[%clk
0:00:24.5]} 44... b6 {[%clk 0:00:05.2]} 45. Kg3 {[%clk 0:00:22.6]} 45... Nc5
{[%clk 0:00:05.1]} 46. Re5 {[%clk 0:00:20.6]} 46... Kd6 {[%clk 0:00:05]} 47. Rh5
{[%clk 0:00:19.6]} 47... Kd7 {[%clk 0:00:02.3]} 48. Rf4 {[%clk 0:00:18.4]} 48...
Ne6 {[%clk 0:00:02.1]} 49. Re4 {[%clk 0:00:17.8]} 49... Rc8 {[%clk 0:00:02.3]}
50. Rd5+ {[%clk 0:00:17.2]} 50... Ke8 {[%clk 0:00:01.8]} 51. Rd6 {[%clk
0:00:16.6]} 51... Kf7 {[%clk 0:00:02.1]} 52. h4 {[%clk 0:00:16.2]} 52... Rc2
{[%clk 0:00:01]} 53. g5 {[%clk 0:00:13]} 53... Rf6 {[%clk 0:00:01.9]} 54. gxf6
{[%clk 0:00:11.5]} 54... Nf8 {[%clk 0:00:01.4]} 55. Rg4 {[%clk 0:00:10.6]} 1-0

[Event "Early-Titled-Tuesday-Blitz-October-10-2023"]
[Site "Chess.com"]
[Date "2023.10.10"]
[Round "9"]
[White "GMBenjaminBok"]
[Black "K_A_S_T_O_R"]
[Result "1-0"]
[WhiteElo "3020"]
[BlackElo "2898"]
[TimeControl "180+1"]
[EndTime "9:44:50 PDT"]
[Termination "GMBenjaminBok won on time"]

1. d4 {[%clk 0:03:00.9]} 1... Nf6 {[%clk 0:02:58.7]} 2. c4 {[%clk 0:02:59.6]}
2... e6 {[%clk 0:02:56.9]} 3. Nc3 {[%clk 0:02:59.6]} 3... Bb4 {[%clk 0:02:56.4]}
4. Qc2 {[%clk 0:03:00.2]} 4... O-O {[%clk 0:02:54.1]} 5. a3 {[%clk 0:03:00]}
5... Bxc3+ {[%clk 0:02:54.3]} 6. Qxc3 {[%clk 0:03:00.9]} 6... d6 {[%clk
0:02:52.7]} 7. Nf3 {[%clk 0:03:00.7]} 7... b6 {[%clk 0:02:49]} 8. e3 {[%clk
0:03:00.6]} 8... Nbd7 {[%clk 0:02:45.1]} 9. Be2 {[%clk 0:03:00]} 9... c5 {[%clk
0:02:45.1]} 10. b4 {[%clk 0:02:59.8]} 10... Bb7 {[%clk 0:02:38.5]} 11. Bb2
{[%clk 0:03:00]} 11... Rc8 {[%clk 0:02:37.8]} 12. O-O {[%clk 0:02:58.6]} 12...
Qc7 {[%clk 0:02:28.9]} 13. Rfd1 {[%clk 0:02:57.8]} 13... Rfe8 {[%clk 0:02:27]}
14. dxc5 {[%clk 0:02:54.5]} 14... bxc5 {[%clk 0:02:25.9]} 15. b5 {[%clk
0:02:48.2]} 15... d5 {[%clk 0:01:58.6]} 16. a4 {[%clk 0:02:47.7]} 16... a5
{[%clk 0:01:48.5]} 17. Nd2 {[%clk 0:02:40.7]} 17... Ra8 {[%clk 0:01:42.8]} 18.
Nb3 {[%clk 0:02:29]} 18... Rec8 {[%clk 0:01:11.7]} 19. h3 {[%clk 0:02:21.4]}
19... h6 {[%clk 0:01:11.2]} 20. cxd5 {[%clk 0:02:04.6]} 20... exd5 {[%clk
0:01:07.9]} 21. Bg4 {[%clk 0:02:03.3]} 21... c4 {[%clk 0:00:59.7]} 22. Bxd7
{[%clk 0:02:00.3]} 22... Qxd7 {[%clk 0:00:54.7]} 23. Nxa5 {[%clk 0:02:00.8]}
23... Rcb8 {[%clk 0:00:42.9]} 24. e4 {[%clk 0:01:43.6]} 24... Qe6 {[%clk
0:00:21.7]} 25. Nxb7 {[%clk 0:01:36.2]} 25... Rxb7 {[%clk 0:00:21.8]} 26. exd5
{[%clk 0:01:36.5]} 26... Qe2 {[%clk 0:00:20.1]} 27. Re1 {[%clk 0:01:19]} 27...
Qh5 {[%clk 0:00:20.1]} 28. d6 {[%clk 0:01:07.7]} 28... Rc8 {[%clk 0:00:17.1]}
29. Rad1 {[%clk 0:00:53.9]} 29... Rd7 {[%clk 0:00:16.7]} 30. Qg3 {[%clk
0:00:51.6]} 30... Kh7 {[%clk 0:00:14.5]} 31. Bxf6 {[%clk 0:00:43.4]} 31... gxf6
{[%clk 0:00:14.9]} 32. Qg4 {[%clk 0:00:37.5]} 32... Qxg4 {[%clk 0:00:12.1]} 33.
hxg4 {[%clk 0:00:38.4]} 33... Ra8 {[%clk 0:00:11]} 34. Re7 {[%clk 0:00:35.9]}
34... Rdd8 {[%clk 0:00:08.6]} 35. d7 {[%clk 0:00:19.7]} 35... Rxa4 {[%clk
0:00:08.4]} 36. Re8 {[%clk 0:00:19.6]} 36... Raa8 {[%clk 0:00:08.8]} 37. Rxd8
{[%clk 0:00:19.6]} 37... Rxd8 {[%clk 0:00:09.4]} 38. b6 {[%clk 0:00:20.5]} 38...
c3 {[%clk 0:00:09.8]} 39. b7 {[%clk 0:00:20.2]} 39... c2 {[%clk 0:00:06.4]} 40.
Rc1 {[%clk 0:00:20.3]} 40... Rxd7 {[%clk 0:00:06.9]} 41. b8=Q {[%clk 0:00:17.2]}
41... Rd1+ {[%clk 0:00:07]} 42. Kh2 {[%clk 0:00:17.4]} 42... Rxc1 {[%clk
0:00:07.5]} 43. Qc7 {[%clk 0:00:14.5]} 43... Kg7 {[%clk 0:00:07.3]} 44. Qc3
{[%clk 0:00:11.6]} 44... Kg8 {[%clk 0:00:04]} 45. Qd2 {[%clk 0:00:09.6]} 45...
Rb1 {[%clk 0:00:02.6]} 46. Qxc2 {[%clk 0:00:09.6]} 46... Rb5 {[%clk 0:00:02.9]}
47. Qd2 {[%clk 0:00:07.2]} 47... Kg7 {[%clk 0:00:02.4]} 48. f3 {[%clk
0:00:07.4]} 48... Re5 {[%clk 0:00:02.8]} 49. Kg3 {[%clk 0:00:07.4]} 49... Rg5
{[%clk 0:00:03.4]} 50. Kh4 {[%clk 0:00:06.2]} 50... Rc5 {[%clk 0:00:03.3]} 51.
Qd4 {[%clk 0:00:05.8]} 51... Re5 {[%clk 0:00:03.2]} 52. f4 {[%clk 0:00:04.9]}
52... Rb5 {[%clk 0:00:03.2]} 53. Qe3 {[%clk 0:00:03]} 53... Ra5 {[%clk
0:00:03.3]} 54. Qc1 {[%clk 0:00:03]} 54... Rb5 {[%clk 0:00:03.5]} 55. f5 {[%clk
0:00:03.4]} 55... Ra5 {[%clk 0:00:03]} 56. Kh5 {[%clk 0:00:03.8]} 1-0

[Event "Early-Titled-Tuesday-Blitz-October-10-2023"]
[Site "Chess.com"]
[Date "2023.10.10"]
[Round "9"]
[White "Iball95"]
[Black "Anton_Demchenko"]
[Result "0-1"]
[WhiteElo "2818"]
[BlackElo "3024"]
[TimeControl "180+1"]
[EndTime "9:44:51 PDT"]
[Termination "Anton_Demchenko won by checkmate"]

1. e4 {[%clk 0:03:00.9]} 1... e5 {[%clk 0:02:59.9]} 2. Nf3 {[%clk 0:03:01.3]}
2... Nc6 {[%clk 0:03:00.5]} 3. Nc3 {[%clk 0:03:01.9]} 3... Nf6 {[%clk
0:03:00.2]} 4. Bb5 {[%clk 0:03:02.5]} 4... Bb4 {[%clk 0:02:57.6]} 5. Nd5 {[%clk
0:03:02.1]} 5... Nxd5 {[%clk 0:02:54.8]} 6. exd5 {[%clk 0:03:03]} 6... Nd4
{[%clk 0:02:55.3]} 7. Nxd4 {[%clk 0:03:01.5]} 7... exd4 {[%clk 0:02:55.7]} 8. a3
{[%clk 0:03:01.9]} 8... Be7 {[%clk 0:02:52.3]} 9. O-O {[%clk 0:02:53.7]} 9...
O-O {[%clk 0:02:52]} 10. Qg4 {[%clk 0:02:28.4]} 10... c5 {[%clk 0:02:40.5]} 11.
Qg3 {[%clk 0:02:07.2]} 11... d6 {[%clk 0:02:36.3]} 12. d3 {[%clk 0:01:53.1]}
12... Bh4 {[%clk 0:02:25.7]} 13. Qf3 {[%clk 0:01:48.5]} 13... a6 {[%clk
0:02:26.1]} 14. Bc4 {[%clk 0:01:46.7]} 14... b5 {[%clk 0:02:22.8]} 15. Ba2
{[%clk 0:01:47.3]} 15... Qf6 {[%clk 0:02:07.3]} 16. Qxf6 {[%clk 0:01:39.2]}
16... Bxf6 {[%clk 0:02:07.1]} 17. Re1 {[%clk 0:01:39.7]} 17... Bf5 {[%clk
0:02:01.3]} 18. Bf4 {[%clk 0:01:39.9]} 18... Rfd8 {[%clk 0:01:42.8]} 19. h3
{[%clk 0:01:20.1]} 19... g5 {[%clk 0:01:42.1]} 20. Bh2 {[%clk 0:01:13.2]} 20...
h5 {[%clk 0:01:40.7]} 21. Rad1 {[%clk 0:01:02]} 21... Rac8 {[%clk 0:01:27.9]}
22. b3 {[%clk 0:00:36.3]} 22... a5 {[%clk 0:01:22.2]} 23. Kf1 {[%clk 0:00:34.3]}
23... b4 {[%clk 0:01:22.2]} 24. a4 {[%clk 0:00:32.7]} 24... Rc7 {[%clk 0:01:20]}
25. Re2 {[%clk 0:00:30.8]} 25... Re7 {[%clk 0:01:20.3]} 26. Rde1 {[%clk
0:00:29.8]} 26... Rxe2 {[%clk 0:01:20.7]} 27. Rxe2 {[%clk 0:00:30.7]} 27... Kf8
{[%clk 0:01:14.7]} 28. Bb1 {[%clk 0:00:29.5]} 28... Be7 {[%clk 0:01:10.4]} 29.
Ba2 {[%clk 0:00:20.7]} 29... Bc8 {[%clk 0:01:10.4]} 30. Bb1 {[%clk 0:00:21.6]}
30... Bb7 {[%clk 0:01:08.6]} 31. f4 {[%clk 0:00:14.3]} 31... gxf4 {[%clk
0:00:58.7]} 32. Bxf4 {[%clk 0:00:15.2]} 32... Bxd5 {[%clk 0:00:58.1]} 33. Bh6+
{[%clk 0:00:15.3]} 33... Ke8 {[%clk 0:00:58.8]} 34. Bg5 {[%clk 0:00:15.3]} 34...
Be6 {[%clk 0:00:59.4]} 35. Bf4 {[%clk 0:00:15.3]} 35... Kd7 {[%clk 0:00:59.6]}
36. Rf2 {[%clk 0:00:15]} 36... Rg8 {[%clk 0:00:59]} 37. Bh2 {[%clk 0:00:14.7]}
37... Bg5 {[%clk 0:00:58.2]} 38. Bf4 {[%clk 0:00:14]} 38... Ke7 {[%clk
0:00:50.6]} 39. Bxg5+ {[%clk 0:00:13.3]} 39... Rxg5 {[%clk 0:00:50.5]} 40. Rf4
{[%clk 0:00:12]} 40... d5 {[%clk 0:00:47.6]} 41. Kf2 {[%clk 0:00:11.6]} 41...
Kd6 {[%clk 0:00:48.2]} 42. h4 {[%clk 0:00:10.8]} 42... Rg8 {[%clk 0:00:43.2]}
43. Rf6 {[%clk 0:00:10.1]} 43... Rh8 {[%clk 0:00:43.1]} 44. Kf3 {[%clk
0:00:09.5]} 44... Ke5 {[%clk 0:00:42.7]} 45. Rf4 {[%clk 0:00:10.1]} 45... Bg4+
{[%clk 0:00:42.6]} 46. Kg3 {[%clk 0:00:10.7]} 46... Rg8 {[%clk 0:00:43.4]} 47.
Rf2 {[%clk 0:00:08.3]} 47... f5 {[%clk 0:00:40.9]} 48. Ba2 {[%clk 0:00:05.8]}
48... f4+ {[%clk 0:00:40.9]} 49. Kh2 {[%clk 0:00:06]} 49... Re8 {[%clk 0:00:34]}
50. Rf1 {[%clk 0:00:05.1]} 50... Kf5 {[%clk 0:00:33.6]} 51. Kg1 {[%clk 0:00:03]}
51... Re2 {[%clk 0:00:34]} 52. Rf2 {[%clk 0:00:03.5]} 52... Re3 {[%clk
0:00:31.3]} 53. Bb1 {[%clk 0:00:02.4]} 53... Ke5 {[%clk 0:00:30.6]} 54. Kf1
{[%clk 0:00:02]} 54... f3 {[%clk 0:00:27.2]} 55. gxf3 {[%clk 0:00:02.9]} 55...
Bxf3 {[%clk 0:00:27.6]} 56. Ba2 {[%clk 0:00:02.4]} 56... Kf4 {[%clk 0:00:28]}
57. Bb1 {[%clk 0:00:01.8]} 57... Kg3 {[%clk 0:00:28.6]} 58. Ba2 {[%clk
0:00:02.2]} 58... Kxh4 {[%clk 0:00:27.1]} 59. Rh2+ {[%clk 0:00:02.2]} 59... Kg3
{[%clk 0:00:26.3]} 60. Rxh5 {[%clk 0:00:02.2]} 60... Bxh5 {[%clk 0:00:25.1]} 61.
c4 {[%clk 0:00:03.1]} 61... Bg4 {[%clk 0:00:24.5]} 62. Bb1 {[%clk 0:00:04]}
62... Bh3+ {[%clk 0:00:25]} 63. Kg1 {[%clk 0:00:03.4]} 63... Re1# {[%clk
0:00:25.8]} 0-1